lending/lending_fUSD_20241005
["ID","MTS","AMOUNT","RATE_DAILY","PERIOD"]
[339866558,1728094249881,-500.0,0.00038339,30]
[339866559,1728094249890,-500.0,0.00038339,30]
[339866560,1728094249900,-540.0,0.00038339,30]
[339866561,1728094249910,-184.271914,0.00038342,2]
[339866562,1728094249919,-214.2143,0.00038365,2]
[339866563,1728094249929,-500.0,0.00038369,120]
[339866564,1728094249938,-500.0,0.00038369,120]
[339866565,1728094249948,-500.0,0.00038369,120]
[339866566,1728094249957,-500.0,0.00038369,120]
[339866567,1728094249967,-500.0,0.00038369,120]
[339866568,1728094249976,-1013.96,0.00038369,120]
[339866569,1728094249986,-500.0,0.00038369,120]
[339866570,1728094249995,-215.0,0.0003839,2]
[339866571,1728094250004,-214.0,0.0003839,2]
[339866572,1728094250014,-214.0,0.0003839,2]
[339866573,1728094250023,-201.0,0.0003839,2]
[339866574,1728094250032,-212.0,0.0003839,30]
[339866575,1728094250042,-157.100509,0.00038448,120]
[339866576,1728094250052,-200.0,0.00038463,2]
[339866577,1728094250061,-856.75,0.00038464,120]
[339866578,1728094250070,-500.0,0.00038464,120]
[339866579,1728094250080,-500.0,0.00038464,120]
[339866580,1728094250090,-500.0,0.00038464,120]
[339866581,1728094250099,-627.29974712,0.00038464,120]
[339866582,1728094250109,-500.0,0.00038464,120]
[339866583,1728094250119,-500.0,0.00038465,120]
[339866584,1728094250128,-317.58040683,0.00038465,120]
[339866585,1728094250138,-500.0,0.00038465,120]
[339866586,1728094250147,-500.0,0.00038465,120]
[339866587,1728094250157,-500.0,0.00038465,120]
[339866588,1728094250166,-500.0,0.00038465,120]
[339866589,1728094250175,-731.5,0.00038465,120]
[339866590,1728094250185,-198.51,0.00038465,120]
[339866591,1728094250195,-500.0,0.00038465,120]
[339866592,1728094250204,-500.0,0.00038465,120]
[339866593,1728094250214,-500.0,0.00038465,120]
[339866594,1728094250224,-500.0,0.00038465,120]
[339866595,1728094250233,-500.0,0.00038542,120]
[339866596,1728094250243,-500.0,0.00038542,120]
[339866597,1728094250253,-500.0,0.00038542,120]
[339866598,1728094250263,-500.0,0.00038542,120]
[339866599,1728094250273,-500.0,0.00038542,120]
[339866600,1728094250283,-500.0,0.00038542,120]
[339866601,1728094250292,-308.87894244,0.00038542,120]
[339866602,1728094250302,-1453.12,0.00038542,120]
[339866603,1728094250311,-500.0,0.00038542,120]
[339866604,1728094250321,-521.73,0.00038542,120]
[339866605,1728094250331,-500.0,0.00038542,120]
[339866606,1728094250341,-638.8,0.00038542,120]
[339866607,1728094250351,-500.0,0.00038542,120]
[339866608,1728094250361,-500.0,0.00038542,120]
[339866609,1728094250370,-721.35,0.00038542,120]
[339866610,1728094250381,-537.24,0.00038542,120]
[339866611,1728094250391,-500.0,0.00038542,120]
[339866612,1728094250401,-816.06,0.00038542,120]
[339866613,1728094250411,-1170.45,0.00038542,120]
[339866614,1728094250421,-500.0,0.00038542,120]
[339866615,1728094250430,-500.0,0.00038542,120]
[339866616,1728094250440,-150.0,0.00038542,120]
[339866617,1728094250450,-500.0,0.00038542,120]
[339866618,1728094250460,-500.0,0.00038542,120]
[339866619,1728094250470,-500.0,0.00038542,120]
[339866620,1728094250480,-569.94,0.00038542,120]
[339866621,1728094250489,-500.0,0.00038542,24]
[339866622,1728094250499,-500.0,0.00038542,120]
[339866623,1728094250509,-500.0,0.00038542,120]
[339866624,1728094250519,-953.05,0.00038542,120]
[339866625,1728094250529,-1035.66,0.00038542,120]
[339866626,1728094250539,-500.0,0.00038542,120]
[339866627,1728094250548,-500.0,0.00038542,120]
[339866628,1728094250558,-500.0,0.00038542,120]
[339866629,1728094250568,-500.0,0.00038542,120]
[339866630,1728094250578,-1507.64,0.00038542,120]
[339866631,1728094250587,-500.0,0.00038542,120]
[339866632,1728094250596,-500.0,0.00038542,120]
[339866633,1728094250606,-500.0,0.00038542,120]
[339866634,1728094250615,-500.0,0.00038542,120]
[339866635,1728094250625,-875.69,0.00038542,120]
[339866636,1728094250634,-500.0,0.00038542,120]
[339866637,1728094250644,-1180.55,0.00038542,120]
[339866638,1728094250653,-150.084,0.00038584,7]
[339866639,1728094250663,-500.0,0.00038613,120]
[339866640,1728094250672,-660.99,0.00038613,120]
[339866641,1728094250685,-1218.65,0.00038613,120]
[339866642,1728094250695,-500.0,0.00038613,120]
[339866643,1728094250704,-402.97037668,0.00038613,120]
[339866644,1728094250713,-586.53,0.00038613,120]
[339866645,1728094250723,-500.0,0.00038613,120]
[339866646,1728094250734,-500.0,0.00038613,120]
[339866647,1728094250743,-500.0,0.00038613,120]
[339866648,1728094250754,-612.34,0.00038613,120]
[339866649,1728094250764,-753.54,0.00038613,120]
[339866650,1728094250774,-500.0,0.00038613,120]
[339866651,1728094250783,-500.0,0.00038613,120]
[339866652,1728094250793,-500.0,0.00038613,120]
[339866653,1728094250802,-500.0,0.00038613,120]
[339866654,1728094250811,-500.0,0.00038613,120]
[339866655,1728094250821,-500.0,0.00038613,120]
[339866656,1728094250831,-664.83,0.00038613,120]
[339866657,1728094250841,-500.0,0.00038613,120]
[339866658,1728094250851,-500.0,0.00038613,120]
[339866659,1728094250861,-500.0,0.00038613,120]
[339866660,1728094250870,-913.92,0.00038613,120]
[339866661,1728094250880,-500.0,0.00038613,120]
[339866662,1728094250890,-500.0,0.00038613,120]
[339866663,1728094250899,-500.0,0.00038613,120]
[339866664,1728094250909,-610.6,0.00038613,120]
[339866665,1728094250919,-500.0,0.00038613,120]
[339866666,1728094250930,-500.0,0.00038613,120]
[339866667,1728094250940,-500.0,0.00038613,120]
[339866668,1728094250950,-540.0,0.00038613,120]
[339866669,1728094250961,-500.0,0.00038643,120]
[339866670,1728094250971,-500.0,0.00038643,120]
[339866671,1728094250981,-500.0,0.00038643,120]
[339866672,1728094250991,-500.0,0.00038643,120]
[339866673,1728094251001,-500.0,0.00038643,120]
[339866674,1728094251011,-1013.96,0.00038643,120]
[339866675,1728094251020,-500.0,0.00038643,120]
[339866676,1728094251030,-167.57,0.00038656,2]
[339866677,1728094251040,-500.0,0.00038664,30]
[339866678,1728094251050,-500.0,0.00038664,30]
[339866679,1728094251059,-500.0,0.00038664,30]
[339866680,1728094251068,-500.0,0.00038664,30]
[339866681,1728094251078,-500.0,0.00038664,30]
[339866682,1728094251089,-500.0,0.00038664,30]
[339866683,1728094251099,-500.0,0.00038664,30]
[339866684,1728094251108,-500.0,0.00038664,30]
[339866685,1728094251118,-500.0,0.00038664,30]
[339866686,1728094251128,-500.0,0.00038664,30]
[339866687,1728094251138,-205.87289534,0.00038664,30]
[339866688,1728094251147,-600.0,0.000387,14]
[339866689,1728094251157,-160.82,0.00038719,2]
[339866690,1728094251167,-856.75,0.00038738,120]
[339866691,1728094251176,-500.0,0.00038738,120]
[339866692,1728094251186,-500.0,0.00038738,120]
[339866693,1728094251195,-500.0,0.00038738,120]
[339866694,1728094251205,-500.0,0.00038738,120]
[339866695,1728094251215,-500.0,0.00038739,120]
[339866696,1728094251224,-500.0,0.00038739,120]
[339866697,1728094251233,-511.8735605,0.00038739,2]
[339866698,1728094251243,-500.0,0.00038739,120]
[339866699,1728094251252,-500.0,0.00038739,120]
[339866700,1728094251262,-500.69777438,0.00038739,120]
[339866701,1728094251271,-731.5,0.00038739,120]
[339866702,1728094251282,-500.0,0.00038739,120]
[339866703,1728094251291,-500.0,0.00038739,120]
[339866704,1728094251301,-500.0,0.00038739,120]
[339866705,1728094251310,-500.0,0.00038739,120]
[339866706,1728094251320,-157.10051,0.00038748,120]
[339866707,1728094251329,-600.0,0.00038771,2]
[339866708,1728094251339,-152.0,0.00038775,4]
[339866709,1728094251349,-223.58,0.000388,7]
[339866710,1728094251358,-1678.56,0.000388,60]
[339866711,1728094251368,-1000.0,0.000388,14]
[339866712,1728094251378,-184.271914,0.00038804,2]
[339866713,1728094251387,-500.0,0.00038816,120]
[339866714,1728094251396,-500.0,0.00038816,120]
[339866715,1728094251406,-500.0,0.00038816,120]
[339866716,1728094251415,-500.0,0.00038816,120]
[339866717,1728094251425,-500.0,0.00038816,120]
[339866718,1728094251435,-500.0,0.00038816,120]
[339866719,1728094251445,-1453.12,0.00038816,120]
[339866720,1728094251456,-500.0,0.00038816,120]
[339866721,1728094251467,-521.73,0.00038816,120]
[339866722,1728094251476,-500.0,0.00038816,120]
[339866723,1728094251489,-638.8,0.00038816,120]
[339866724,1728094251499,-500.0,0.00038816,120]
[339866725,1728094251510,-500.0,0.00038816,120]
[339866726,1728094251522,-721.35,0.00038816,120]
[339866727,1728094251532,-537.24,0.00038816,120]
[339866728,1728094251542,-500.0,0.00038816,120]
[339866729,1728094251551,-816.06,0.00038816,120]
[339866730,1728094251561,-1170.45,0.00038816,120]
[339866731,1728094251571,-500.0,0.00038816,120]
[339866732,1728094251580,-500.0,0.00038816,120]
[339866733,1728094251590,-150.0,0.00038816,120]
[339866734,1728094251600,-500.0,0.00038816,120]
[339866735,1728094251609,-649.76967727,0.00038816,120]
[339866736,1728094251619,-500.0,0.00038816,120]
[339866737,1728094251628,-569.94,0.00038816,120]
[339866738,1728094251638,-500.0,0.00038816,24]
[339866739,1728094251648,-500.0,0.00038816,120]
[339866740,1728094251658,-500.0,0.00038816,120]
[339866741,1728094251667,-953.05,0.00038816,120]
[339866742,1728094251677,-1035.66,0.00038816,120]
[339866743,1728094251689,-500.0,0.00038816,120]
[339866744,1728094251698,-500.0,0.00038816,120]
[339866745,1728094251708,-500.0,0.00038816,120]
[339866746,1728094251718,-500.0,0.00038816,120]
[339866747,1728094251728,-1507.64,0.00038816,120]
[339866748,1728094251737,-500.0,0.00038816,120]
[339866749,1728094251747,-500.0,0.00038816,120]
[339866750,1728094251756,-632.36347226,0.00038816,120]
[339866751,1728094251766,-500.0,0.00038816,120]
[339866752,1728094251776,-875.69,0.00038816,120]
[339866753,1728094251793,-500.0,0.00038816,120]
[339866754,1728094251802,-1180.55,0.00038816,120]
[339866755,1728094251812,-500.0,0.00038887,120]
[339866756,1728094251822,-660.99,0.00038887,120]
[339866757,1728094251832,-1218.65,0.00038887,120]
[339866758,1728094251841,-500.0,0.00038887,120]
[339866759,1728094251851,-586.53,0.00038887,120]
[339866760,1728094251861,-500.0,0.00038887,120]
[339866761,1728094251871,-500.0,0.00038887,120]
[339866762,1728094251881,-500.0,0.00038887,120]
[339866763,1728094251890,-612.34,0.00038887,120]
[339866764,1728094251900,-753.54,0.00038887,120]
[339866765,1728094251910,-500.0,0.00038887,120]
[339866766,1728094251920,-574.94876276,0.00038887,120]
[339866767,1728094251929,-361.29961694,0.00038887,120]
[339866768,1728094251939,-500.0,0.00038887,120]
[339866769,1728094251949,-500.0,0.00038887,120]
[339866770,1728094251959,-500.0,0.00038887,120]
[339866771,1728094251970,-664.83,0.00038887,120]
[339866772,1728094251980,-500.0,0.00038887,120]
[339866773,1728094251990,-500.0,0.00038887,120]
[339866774,1728094252137,-500.0,0.00038887,120]
[339866775,1728094252148,-913.92,0.00038887,120]
[339866776,1728094252158,-500.0,0.00038887,120]
[339866777,1728094252167,-500.0,0.00038887,120]
[339866778,1728094252177,-500.0,0.00038887,120]
[339866779,1728094252186,-610.6,0.00038887,120]
[339866780,1728094252195,-565.85971191,0.00038887,120]
[339866781,1728094252205,-500.0,0.00038887,120]
[339866782,1728094252214,-500.0,0.00038887,120]
[339866783,1728094252224,-540.0,0.00038887,120]
[339866784,1728094252233,-310.62064472,0.00038897,12]
[339866785,1728094252242,-1511.15416101,0.000389,2]
[339866786,1728094252252,-1300.0,0.000389,14]
[339866787,1728094252262,-2000.0,0.00038903,2]
[339866788,1728094252273,-509.37679123,0.00038917,120]
[339866789,1728094252282,-500.0,0.00038917,120]
[339866790,1728094252291,-500.0,0.00038917,120]
[339866791,1728094252301,-513.44659085,0.00038917,120]
[339866792,1728094252312,-500.0,0.00038917,120]
[339866793,1728094252322,-1013.96,0.00038917,120]
[339866794,1728094252332,-500.0,0.00038917,120]
[339866795,1728094252341,-2110.0,0.00038953,2]
[339866796,1728094252351,-519.87,0.0003896,120]
[339866797,1728094252360,-238.27330472,0.00038986,7]
[339866798,1728094252370,-150.0,0.00038986,7]
[339866799,1728094252379,-247.51243225,0.00038986,7]
[339866800,1728094252392,-150.0,0.00038986,7]
[339866801,1728094252402,-195.53409799,0.00038986,7]
[339866802,1728094252413,-150.0,0.00038986,7]
[339866803,1728094252424,-257.28453557,0.00038986,7]
[339866804,1728094252435,-150.0,0.00038986,7]
[339866805,1728094252447,-150.0,0.00038986,7]
[339866806,1728094252457,-245.08383883,0.00038986,7]
[339866807,1728094252467,-150.0,0.00038986,7]
[339866808,1728094252476,-152.11399,0.00038987,14]
[339866809,1728094252485,-151.0,0.00038987,14]
[339866810,1728094252495,-151.0,0.00038987,14]
[339866811,1728094252506,-293.626867,0.00038987,14]
[339866812,1728094252516,-151.0,0.00038987,14]
[339866813,1728094252526,-151.0,0.00038987,14]
[339866814,1728094252535,-151.0,0.00038987,14]
[339866815,1728094252545,-151.0,0.00038987,7]
[339866816,1728094252554,-151.0,0.00038987,14]
[339866817,1728094252564,-151.0,0.00038987,14]
[339866818,1728094252573,-618.740063,0.0003899,14]
[339866819,1728094252585,-618.740063,0.0003899,14]
[339866820,1728094252597,-151.0,0.0003899,14]
[339866821,1728094252606,-151.0,0.0003899,14]
[339866822,1728094252618,-151.0,0.0003899,14]
[339866823,1728094252627,-151.0,0.0003899,14]
[339866824,1728094252637,-151.0,0.0003899,14]
[339866825,1728094252647,-266726.385957,0.00038997,20]
[339866826,1728094252656,-151.0,0.00038997,14]
[339866827,1728094252667,-152.25249,0.00038997,14]
[339866828,1728094252676,-151.0,0.00038997,14]
[339866829,1728094252688,-151.0,0.00038997,14]
[339866830,1728094252697,-151.0,0.00038997,14]
[339866831,1728094252707,-151.0,0.00038997,14]
[339866832,1728094252717,-151.0,0.00038997,14]
[339866833,1728094252728,-151.0,0.00038997,14]
[339866834,1728094252737,-151.0,0.00038997,14]
[339866835,1728094252746,-151.0,0.00038997,14]
[339866836,1728094252756,-151.0,0.00038997,14]
[339866837,1728094252765,-151.0,0.00038997,14]
[339866838,1728094252777,-151.0,0.00038997,14]
[339866839,1728094252786,-169.309547,0.00038997,14]
[339866840,1728094252795,-151.0,0.00038997,14]
[339866841,1728094252805,-169.309547,0.00038997,14]
[339866842,1728094252814,-445.22724,0.00038997,14]
[339866843,1728094252824,-445.22724,0.00038997,14]
[339866844,1728094252833,-151.0,0.00038997,14]
[339866845,1728094252843,-151.0,0.00038997,14]
[339866846,1728094252853,-151.0,0.00038997,14]
[339866847,1728094252862,-151.0,0.00038997,14]
[339866848,1728094252871,-151.0,0.00038997,14]
[339866849,1728094252881,-151.0,0.00038997,14]
[339866850,1728094252890,-151.0,0.00038997,14]
[339866851,1728094252900,-151.0,0.00038997,14]
[339866852,1728094252910,-151.0,0.00038997,14]
[339866853,1728094252919,-151.0,0.00038997,14]
[339866854,1728094252929,-151.0,0.00038997,7]
[339866855,1728094252938,-151.892022,0.00038997,14]
[339866856,1728094252948,-182.372402,0.00038997,14]
[339866857,1728094252957,-182.372402,0.00038997,14]
[339866858,1728094252967,-151.0,0.00038997,14]
[339866859,1728094252976,-151.0,0.00038997,14]
[339866860,1728094252985,-151.0,0.00038997,14]
[339866861,1728094252995,-151.0,0.00038997,14]
[339866862,1728094253004,-151.0,0.00038997,14]
[339866863,1728094253013,-151.0,0.00038997,14]
[339866864,1728094253023,-151.0,0.00038997,14]
[339866865,1728094253032,-151.0,0.00038997,14]
[339866866,1728094253041,-151.0,0.00038997,14]
[339866867,1728094253050,-151.0,0.00038997,14]
[339866868,1728094253059,-151.0,0.00038997,14]
[339866869,1728094253068,-151.0,0.00038997,14]
[339866870,1728094253077,-151.0,0.00038997,14]
[339866871,1728094253086,-151.0,0.00038997,14]
[339866872,1728094253095,-152.1317,0.00038997,7]
[339866873,1728094253104,-151.0,0.00038997,14]
[339866874,1728094253114,-152.1317,0.00038997,7]
[339866875,1728094253123,-151.0,0.00038997,14]
[339866876,1728094253133,-151.0,0.00038997,14]
[339866877,1728094253142,-151.0,0.00038997,14]
[339866878,1728094253151,-151.0,0.00038997,14]
[339866879,1728094253160,-151.0,0.00038997,14]
[339866880,1728094253172,-151.0,0.00038997,14]
[339866881,1728094253182,-151.0,0.00038997,14]
[339866882,1728094253192,-151.0,0.00038997,14]
[339866883,1728094253201,-151.0,0.00038997,14]
[339866884,1728094253210,-151.0,0.00038997,14]
[339866885,1728094253220,-151.0,0.00038997,14]
[339866886,1728094253229,-151.0,0.00038997,14]
[339866887,1728094253239,-151.0,0.00038997,14]
[339866888,1728094253248,-151.0,0.00038997,14]
[339866889,1728094253258,-152.206837,0.00038997,14]
[339866890,1728094253267,-152.036371,0.00038997,14]
[339866891,1728094253276,-151.0,0.00038997,14]
[339866892,1728094253285,-154.592465,0.00038997,14]
[339866893,1728094253294,-151.0,0.00038997,14]
[339866894,1728094253304,-151.0,0.00038997,14]
[339866895,1728094253314,-151.0,0.00038997,14]
[339866896,1728094253323,-151.0,0.00038997,14]
[339866897,1728094253334,-266.201992,0.00038997,14]
[339866898,1728094253345,-618.740063,0.00038997,14]
[339866899,1728094253356,-618.740063,0.00038997,14]
[339866900,1728094253367,-151.0,0.00038997,14]
[339866901,1728094253378,-151.0,0.00038997,14]
[339866902,1728094253390,-151.0,0.00038997,14]
[339866903,1728094253402,-151.0,0.00038997,14]
[339866904,1728094253412,-305.623152,0.00038997,14]
[339866905,1728094253424,-305.623152,0.00038997,14]
[339866906,1728094253433,-151.0,0.00038997,14]
[339866907,1728094253443,-298.470644,0.00038997,14]
[339866908,1728094253452,-298.470644,0.00038997,14]
[339866909,1728094253461,-151.0,0.00038997,14]
[339866910,1728094253470,-151.0,0.00038997,14]
[339866911,1728094253481,-151.0,0.00038997,14]
[339866912,1728094253490,-151.0,0.00038997,14]
[339866913,1728094253501,-151.0,0.00038997,14]
[339866914,1728094253510,-151.0,0.00038997,14]
[339866915,1728094253520,-151.0,0.00038997,14]
[339866916,1728094253529,-152.892527,0.00038997,7]
[339866917,1728094253538,-151.0,0.00038997,14]
[339866918,1728094253548,-151.0,0.00038997,14]
[339866919,1728094253558,-152.365003,0.00038997,14]
[339866920,1728094253568,-151.0,0.00038997,14]
[339866921,1728094253578,-151.0,0.00038997,14]
[339866922,1728094253588,-151.0,0.00038997,14]
[339866923,1728094253597,-151.0,0.00038997,14]
[339866924,1728094253608,-219.234868,0.00038997,14]
[339866925,1728094253617,-151.0,0.00038997,14]
[339866926,1728094253625,-151.0,0.00038997,14]
[339866927,1728094253634,-40000.0,0.00039,60]
[339866928,1728094253643,-2020.59915057,0.00039,120]
[339866929,1728094253652,-856.75,0.00039012,120]
[339866930,1728094253662,-500.0,0.00039012,120]
[339866931,1728094253671,-500.0,0.00039012,120]
[339866932,1728094253681,-500.0,0.00039012,120]
[339866933,1728094253690,-500.0,0.00039012,120]
[339866934,1728094253699,-500.0,0.00039013,120]
[339866935,1728094253708,-500.0,0.00039013,120]
[339866936,1728094253717,-500.0,0.00039013,120]
[339866937,1728094253726,-500.0,0.00039013,120]
[339866938,1728094253735,-731.5,0.00039013,120]
[339866939,1728094253744,-500.0,0.00039013,120]
[339866940,1728094253754,-500.0,0.00039013,120]
[339866941,1728094253763,-500.0,0.00039013,120]
[339866942,1728094253772,-500.0,0.00039013,120]
[339866943,1728094253782,-238.27330472,0.00039017,7]
[339866944,1728094253791,-1386.9511154,0.00039025,2]
[339866945,1728094253800,-150.0,0.00039033,7]
[339866946,1728094253809,-150.0,0.00039036,7]
[339866947,1728094253818,-1456.082727,0.00039036,2]
[339866948,1728094253828,-238.27330472,0.00039047,7]
[339866949,1728094253837,-4535.9566467,0.00039052,2]
[339866950,1728094253847,-15538.7061739,0.00039052,2]
[339866951,1728094253857,-500.88023943,0.00039058,30]
[339866952,1728094253866,-3773.1259603,0.00039063,2]
[339866953,1728094253875,-238.27330472,0.00039078,7]
[339866954,1728094253884,-150.0,0.00039079,7]
[339866955,1728094253893,-150.0,0.00039085,7]
[339866956,1728094253903,-500.0,0.0003909,120]
[339866957,1728094253912,-500.0,0.0003909,120]
[339866958,1728094253922,-500.0,0.0003909,120]
[339866959,1728094253931,-500.0,0.0003909,120]
[339866960,1728094253940,-405.33249333,0.0003909,120]
[339866961,1728094253950,-500.0,0.0003909,120]
[339866962,1728094253960,-1453.12,0.0003909,120]
[339866963,1728094253969,-500.0,0.0003909,120]
[339866964,1728094253979,-521.73,0.0003909,120]
[339866965,1728094253988,-500.0,0.0003909,120]
[339866966,1728094253998,-638.8,0.0003909,120]
[339866967,1728094254008,-500.0,0.0003909,120]
[339866968,1728094254018,-500.0,0.0003909,120]
[339866969,1728094254028,-721.35,0.0003909,120]
[339866970,1728094254037,-537.24,0.0003909,120]
[339866971,1728094254046,-500.0,0.0003909,120]
[339866972,1728094254055,-816.06,0.0003909,120]
[339866973,1728094254065,-1170.45,0.0003909,120]
[339866974,1728094254075,-500.0,0.0003909,120]
[339866975,1728094254084,-500.0,0.0003909,120]
[339866976,1728094254094,-150.0,0.0003909,120]
[339866977,1728094254104,-500.0,0.0003909,120]
[339866978,1728094254114,-500.0,0.0003909,120]
[339866979,1728094254124,-569.94,0.0003909,120]
[339866980,1728094254134,-500.0,0.0003909,24]
[339866981,1728094254143,-500.0,0.0003909,120]
[339866982,1728094254152,-500.0,0.0003909,120]
[339866983,1728094254161,-953.05,0.0003909,120]
[339866984,1728094254170,-1035.66,0.0003909,120]
[339866985,1728094254179,-500.0,0.0003909,120]
[339866986,1728094254190,-500.0,0.0003909,120]
[339866987,1728094254202,-500.0,0.0003909,120]
[339866988,1728094254213,-1507.64,0.0003909,120]
[339866989,1728094254222,-500.0,0.0003909,120]
[339866990,1728094254231,-500.0,0.0003909,120]
[339866991,1728094254242,-500.0,0.0003909,120]
[339866992,1728094254253,-875.69,0.0003909,120]
[339866993,1728094254262,-500.0,0.0003909,120]
[339866994,1728094254271,-1180.55,0.0003909,120]
[339866995,1728094254282,-500.0,0.00039097,120]
[339866996,1728094254292,-150.0,0.00039102,7]
[339866997,1728094254305,-238.27330472,0.00039108,7]
[339866998,1728094254315,-150.0,0.00039125,7]
[339866999,1728094254324,-150.0,0.0003913,7]
[339867000,1728094254333,-150.0,0.00039135,7]
[339867001,1728094254343,-238.27330472,0.00039139,7]
[339867002,1728094254353,-500.5943378,0.00039142,5]
[339867003,1728094254363,-157.10051,0.00039148,120]
[339867004,1728094254372,-500.0,0.00039161,120]
[339867005,1728094254382,-660.99,0.00039161,120]
[339867006,1728094254393,-1218.65,0.00039161,120]
[339867007,1728094254403,-500.0,0.00039161,120]
[339867008,1728094254413,-586.53,0.00039161,120]
[339867009,1728094254422,-500.0,0.00039161,120]
[339867010,1728094254432,-500.0,0.00039161,120]
[339867011,1728094254442,-500.0,0.00039161,120]
[339867012,1728094254487,-612.34,0.00039161,120]
[339867013,1728094254497,-753.54,0.00039161,120]
[339867014,1728094254506,-588.31412196,0.00039161,120]
[339867015,1728094254515,-500.0,0.00039161,120]
[339867016,1728094254525,-500.0,0.00039161,120]
[339867017,1728094254535,-234.10597142,0.00039161,120]
[339867018,1728094254545,-664.83,0.00039161,120]
[339867019,1728094254554,-220.58510704,0.00039161,120]
[339867020,1728094254563,-500.0,0.00039161,120]
[339867021,1728094254572,-500.0,0.00039161,120]
[339867022,1728094254581,-913.92,0.00039161,120]
[339867023,1728094254590,-500.0,0.00039161,120]
[339867024,1728094254600,-500.0,0.00039161,120]
[339867025,1728094254609,-500.0,0.00039161,120]
[339867026,1728094254618,-610.6,0.00039161,120]
[339867027,1728094254628,-513.08819241,0.00039161,120]
[339867028,1728094254637,-500.0,0.00039161,120]
[339867029,1728094254646,-540.0,0.00039161,120]
[339867030,1728094254655,-238.27330472,0.00039169,7]
[339867031,1728094254664,-150.0,0.00039172,7]
[339867032,1728094254674,-1986.78,0.0003918,60]
[339867033,1728094254685,-150.0,0.00039184,7]
[339867034,1728094254694,-500.0,0.00039191,120]
[339867035,1728094254703,-500.0,0.00039191,120]
[339867036,1728094254713,-500.0,0.00039191,120]
[339867037,1728094254723,-1013.96,0.00039191,120]
[339867038,1728094254732,-500.0,0.00039191,120]
[339867039,1728094254741,-238.27330472,0.00039199,7]
[339867040,1728094254750,-283.12,0.0003921,2]
[339867041,1728094254760,-150.0,0.00039218,7]
[339867042,1728094254770,-150.0,0.00039218,7]
[339867043,1728094254779,-238.27330472,0.0003923,7]
[339867044,1728094254787,-150.0,0.00039233,7]
[339867045,1728094254796,-238.27330472,0.0003926,7]
[339867046,1728094254805,-150.0,0.00039264,7]
[339867047,1728094254814,-150.0,0.00039273,7]
[339867048,1728094254824,-150.0,0.00039283,7]
[339867049,1728094254834,-150.0,0.00039286,2]
[339867050,1728094254843,-856.75,0.00039286,120]
[339867051,1728094254853,-563.9435959,0.00039286,120]
[339867052,1728094254863,-500.0,0.00039286,120]
[339867053,1728094254872,-500.0,0.00039286,120]
[339867054,1728094254882,-500.0,0.00039286,120]
[339867055,1728094254891,-500.0,0.00039287,120]
[339867056,1728094254901,-500.0,0.00039287,120]
[339867057,1728094254910,-370.90277843,0.00039287,120]